bitfinex/quotes_ETHUSD_20241123
["timestamp","ask_amount","ask_price","bid_price","bid_amount"]
[1732374941343,0.06015847,3458.7,3457.7,0.02200904]
[1732374941667,0.06015847,3458.7,3457.8,0.42785322]
[1732374941830,0.06015847,3458.7,3457.9,0.59916945]
[1732374942163,0.06015847,3458.7,3458.0,0.42785322]
[1732374942365,0.06015847,3458.7,3458.1,0.42785322]
[1732374942563,0.06015847,3458.7,3458.2,0.42785322]
[1732374942731,0.06015847,3458.7,3458.3,0.42785322]
[1732374942934,0.427853,3458.6,3458.4,0.42785322]
[1732374943319,0.427853,3458.6,3458.5,0.42785322]
[1732374944021,0.427853,3458.6,3458.5,0.10995321]
[1732374944184,0.427853,3458.6,3457.7,0.02200904]
[1732374944185,1.682953,3458.6,3457.7,0.02200904]
[1732374944931,1.682953,3458.6,3457.1,1.2728]
[1732374945138,1.1706,3458.5,3457.1,1.2728]
[1732374945331,0.16586115,3458.4,3457.1,1.2728]
[1732374946988,1.1706,3458.5,3457.1,1.2728]
[1732374947689,1.7400864,3458.5,3457.1,1.2728]
[1732374948327,1.7400864,3458.5,3457.2,0.01836372]
[1732374948505,1.203,3458.4,3457.2,0.01836372]
[1732374949939,0.06015847,3458.7,3457.5,1.2272]
[1732374950151,0.06015847,3458.7,3457.6,0.56639374]
[1732374950425,0.06015847,3458.7,3457.8,1.2272]
[1732374950612,0.06015847,3458.7,3457.9,0.04409978]
[1732374950813,0.06015847,3458.7,3458.1,1.2272]
[1732374950990,0.06015847,3458.7,3458.2,0.59370242]
[1732374951190,0.06015847,3458.7,3458.3,1.24199061]
[1732374951399,0.06015847,3458.7,3458.4,0.01479018]
[1732374953728,0.56781423,3459.1,3458.6,0.55]
[1732374954041,1.1894,3460.1,3458.9,1.2241]
[1732374955351,2.344471,3460.1,3458.9,1.2241]
[1732374955937,0.56784773,3459.9,3459.0,0.55]
[1732374956109,0.56784773,3459.9,3459.1,0.17741]
[1732374958648,0.56784773,3459.9,3459.1,0.20631489]
[1732374959108,0.56784773,3459.9,3459.1,0.17741]
[1732374960141,0.56784773,3459.9,3459.1,0.20631492]
[1732374960338,0.56784773,3459.9,3459.2,0.19804149]
[1732374961048,0.56784773,3459.9,3459.3,1.2241]
[1732374961515,1.154987,3460.3,3459.6,0.55]
[1732374961725,1.154987,3460.3,3459.8,0.55]
[1732374961910,1.154987,3460.3,3459.9,0.23241]
[1732374962337,1.1894,3461.1,3459.7,1.2241]
[1732374962338,0.55428114,3461.0,3459.7,1.2241]
[1732374962537,1.1894,3461.1,3459.7,1.2241]
[1732374962737,1.7410942,3461.1,3459.7,1.2241]
[1732374962940,0.17410942,3461.0,3459.7,1.2241]
[1732374963218,3.17410942,3461.0,3459.7,1.2241]
[1732374963509,3.17410942,3461.0,3459.8,0.00611068]
[1732374963956,0.5667054,3460.8,3459.8,0.00611068]
[1732374964259,1.1374,3460.7,3459.8,0.00611068]
[1732374964469,1.1374,3460.3,3457.2,1.1707]
[1732374964634,1.1374,3460.1,3457.4,1.1707]
[1732374964953,1.1374,3460.1,3457.7,0.57520554]
[1732374965163,1.1374,3460.1,3457.8,0.17748196]
[1732374965335,1.70222381,3460.1,3457.8,0.17748196]
[1732374965649,1.1374,3459.8,3457.9,0.02891404]
[1732374965810,1.1374,3459.8,3457.8,0.17748196]
[1732374966462,1.1374,3459.8,3457.9,1.1707]
[1732374966610,1.1374,3459.8,3457.9,1.19961421]
[1732374967011,1.1374,3459.8,3458.0,1.1707]
[1732374970226,1.1374,3459.8,3458.1,0.57891545]
[1732374970423,1.1374,3459.8,3458.0,1.1707]
[1732374970623,0.16939516,3459.7,3458.0,1.1707]
[1732374970825,1.1857,3459.8,3458.0,1.1707]
[1732374973415,0.59140017,3459.2,3458.0,1.1707]
[1732374973619,1.1857,3459.1,3458.0,1.1707]
[1732374974947,1.36341002,3459.1,3457.8,0.17748196]
[1732374975256,1.36341002,3459.1,3457.6,1.1739]
[1732374975925,1.36341002,3459.1,3456.7,1.1739]
[1732374976128,0.55,3459.0,3456.7,1.1739]
[1732374976367,1.1857,3458.7,3456.7,1.1739]
[1732374977265,1.1857,3458.6,3456.7,1.1739]
[1732374977424,0.57230227,3457.9,3456.7,1.1739]
[1732374977636,0.57230227,3457.9,3456.8,0.02892626]
[1732374977870,1.1857,3458.6,3456.7,1.1739]
[1732374978360,1.1857,3457.9,3456.2,1.1739]
[1732374978568,1.1857,3457.9,3456.3,0.72761061]
[1732374980076,1.1857,3457.9,3456.3,0.17761061]
[1732374980229,1.1857,3457.9,3456.4,0.02892763]
[1732374980827,1.74956586,3457.9,3456.4,0.02892763]
[1732374981272,1.74956586,3457.9,3456.4,0.57892763]
[1732374981438,1.1857,3457.9,3456.6,0.55]
[1732374981637,1.1857,3457.9,3456.8,1.1739]
[1732374981838,1.1857,3457.9,3456.9,0.57892432]
[1732374982041,1.1857,3457.9,3456.9,0.55]
[1732374982372,1.1857,3458.7,3457.1,0.55]
[1732374983162,0.56683713,3458.1,3457.1,0.55]
[1732374983361,1.1671,3458.0,3457.0,0.17528243]
[1732374983570,1.1671,3458.4,3457.1,1.76822274]
[1732374983726,1.1671,3459.7,3457.5,0.55]
[1732374983927,0.56527862,3458.9,3457.5,0.55]
[1732374984130,1.1671,3458.8,3457.4,1.1893]
[1732374984575,1.1671,3458.8,3457.5,0.55]
[1732374984790,1.1671,3458.8,3457.7,0.55]
[1732374984937,1.1671,3458.8,3457.8,1.1893]
[1732374985642,1.1671,3460.1,3457.9,0.55]
[1732374985875,1.1671,3460.1,3458.0,0.02891381]
[1732374986083,1.1671,3460.1,3458.3,1.1893]
[1732374986278,1.1671,3460.1,3458.4,0.57890917]
[1732374986560,1.1671,3460.1,3458.5,1.1893]
[1732374986763,1.1671,3460.1,3458.6,0.57890573]
[1732374986973,1.1671,3460.1,3458.5,1.1893]
[1732374987155,0.56649329,3459.8,3458.5,1.1893]
[1732374987474,1.1671,3459.7,3458.5,1.1893]
[1732374987676,1.34045933,3459.7,3458.5,1.1893]
[1732374988336,1.34045933,3459.7,3457.3,0.02891011]
[1732374988441,1.34045933,3459.7,3458.2,1.1175]
[1732374988941,1.90960941,3459.7,3458.2,1.1175]
[1732374989147,1.90960941,3459.7,3457.7,1.1175]
[1732374989148,1.1908,3459.5,3457.7,1.1175]
[1732374989487,1.1908,3459.5,3457.8,0.55]
[1732374989778,0.56735869,3459.1,3457.9,0.1696412]
[1732374991369,1.1908,3459.0,3457.9,0.1696412]
[1732374992447,0.002,3458.2,3457.9,0.1696412]
[1732374993766,1.17932982,3459.0,3457.9,0.1696412]
[1732374995479,10.3529075,3461.0,3458.2,0.55]
[1732374995675,2.03503256,3461.0,3458.3,0.02890786]
[1732374995894,0.56339733,3459.6,3458.2,0.55]
[1732374996099,0.56339733,3459.6,3458.4,0.55]
[1732374996896,1.1908,3459.5,3458.4,0.55]
[1732374997811,0.56339733,3459.6,3458.6,0.55]
[1732374999084,0.56339733,3459.6,3458.8,0.55]
[1732374999781,0.56339733,3459.6,3458.7,1.1175]
[1732375005137,1.1934,3459.5,3458.7,1.1175]
[1732375005530,1.36907973,3459.5,3458.3,1.0945]
[1732375005753,1.36907973,3459.5,3457.3,1.0945]
[1732375005977,0.19324771,3459.4,3457.5,1.0945]
[1732375006265,1.1934,3459.2,3457.5,1.0945]
[1732375006441,1.38706477,3459.1,3457.5,1.0945]
[1732375006771,1.1934,3459.1,3457.5,1.0945]
[1732375007479,1.1934,3459.1,3457.6,0.02891797]
[1732375007653,1.1934,3459.1,3457.7,1.0945]
[1732375007839,1.1934,3460.0,3457.9,1.0945]
[1732375009141,1.76471116,3459.1,3457.9,1.0945]
[1732375009345,1.195,3460.0,3457.9,1.0945]
[1732375009654,1.195,3459.9,3457.9,1.0945]
[1732375010569,1.195,3459.9,3457.3,1.123]
[1732375010789,1.195,3459.1,3457.6,0.55]
[1732375010944,1.195,3459.1,3457.7,0.02891309]
[1732375011139,1.37221527,3459.1,3457.5,1.123]
[1732375011383,1.195,3459.1,3457.5,1.123]
[1732375012668,0.57715271,3459.2,3457.7,1.123]
[1732375012846,0.57715271,3459.2,3457.9,1.123]
[1732375013571,1.74986546,3459.9,3457.9,1.123]
[1732375013742,1.74986546,3459.9,3458.1,1.123]
[1732375013937,1.74986546,3459.9,3458.2,1.32210055]
[1732375014174,0.57993924,3459.4,3458.2,1.15190943]
[1732375014843,0.57993924,3459.4,3458.3,0.55]
[1732375015185,0.57993924,3459.4,3458.4,1.123]
[1732375015680,0.57993924,3459.4,3458.6,1.123]
[1732375015846,1.195,3460.6,3458.7,0.57890618]
[1732375016042,1.195,3460.5,3458.8,1.123]
[1732375016272,0.17662347,3460.4,3458.8,1.123]
[1732375016479,1.195,3459.9,3458.8,1.123]
[1732375017252,1.195,3459.9,3457.8,0.02890731]
[1732375017253,1.195,3459.7,3457.9,1.123]
[1732375017579,1.195,3459.3,3457.9,1.123]
[1732375017781,0.55,3459.2,3457.9,1.123]
[1732375018085,0.55,3459.0,3457.9,1.123]
[1732375018244,0.56791504,3458.9,3457.9,1.123]
[1732375018465,0.55,3458.8,3457.9,1.123]
[1732375019570,0.56791504,3458.9,3457.9,1.123]
[1732375020115,1.195,3459.1,3457.9,1.123]
[1732375020721,1.195,3460.9,3458.1,1.123]
[1732375021003,1.195,3460.9,3458.0,0.02891372]
[1732375021004,1.195,3460.6,3458.2,1.15190955]
[1732375021372,0.56387746,3459.5,3458.2,1.15190955]
[1732375021917,1.195,3460.6,3458.2,1.15190955]
[1732375022598,1.195,3460.6,3458.2,1.59898824]
[1732375022803,1.195,3460.6,3458.3,1.28289882]
[1732375022972,1.195,3460.6,3458.4,1.15190541]
[1732375023310,0.57789596,3460.0,3458.4,1.15190541]
[1732375024474,0.00816322,3459.7,3458.4,1.15190541]
[1732375025377,0.00816322,3459.7,3458.4,1.0259841]
[1732375025577,0.00816322,3459.7,3458.7,1.1699]
[1732375025777,0.00816322,3459.7,3458.6,0.55]
[1732375025778,0.00816322,3459.7,3458.9,1.1699]
[1732375026010,0.00816322,3459.7,3458.8,0.20089184]
[1732375026011,1.1069,3461.0,3459.0,1.19879985]
[1732375026687,0.58401065,3460.8,3459.0,1.19879985]
[1732375026913,0.60401073,3460.8,3459.0,1.1699]
[1732375027216,0.60401073,3460.8,3459.2,1.1699]
[1732375027377,0.60401073,3460.8,3459.4,1.1699]
[1732375028283,0.57160821,3461.0,3459.5,1.17819869]
[1732375028499,1.12690008,3461.5,3459.7,1.1493]
[1732375028673,0.56243618,3462.1,3459.9,1.1493]
[1732375028874,0.56768558,3461.6,3460.1,1.1493]
[1732375029112,0.56768558,3461.6,3460.3,1.1493]
[1732375029310,0.56768558,3461.6,3460.5,1.1493]
[1732375030105,0.56768558,3461.6,3460.7,1.1493]
[1732375030877,0.02000008,3461.5,3460.7,1.1493]
[1732375031272,0.56768558,3461.6,3460.7,1.1493]
[1732375031578,0.02000008,3461.5,3460.7,1.1493]
[1732375032002,1.71880008,3461.5,3460.7,1.1493]
[1732375032179,0.22864857,3461.4,3459.9,1.1493]
[1732375032379,0.02000008,3461.3,3459.9,1.1493]
[1732375032805,0.57000008,3461.3,3459.9,1.1493]
[1732375033307,0.55,3461.1,3459.9,1.1493]
[1732375033530,0.02000008,3461.0,3459.9,1.1493]
[1732375033681,0.55,3460.8,3458.9,1.1493]
[1732375033876,0.55,3460.6,3459.1,1.1493]
[1732375034075,0.02000008,3460.5,3459.1,1.1493]
[1732375034512,0.57000008,3460.6,3459.2,1.17820369]
[1732375034721,1.1488,3460.9,3459.2,1.17820369]
[1732375034886,0.58801825,3460.6,3459.2,1.17820369]
[1732375035079,0.02000008,3460.5,3459.2,1.17820369]
[1732375035380,0.58801825,3460.6,3459.2,1.17820369]
[1732375036405,0.02000008,3460.5,3459.2,1.1493]
[1732375037304,0.58801825,3460.6,3459.4,1.1493]
[1732375037610,0.58801825,3460.6,3459.5,1.17820128]
[1732375037977,0.58801825,3460.6,3459.5,1.1493]
[1732375040578,0.02000008,3460.5,3459.5,1.1493]
[1732375041019,0.58801825,3460.6,3459.5,1.1493]
[1732375041319,0.02000008,3460.5,3459.5,1.1493]
[1732375041819,0.50801833,3460.6,3459.5,1.1493]
[1732375042401,1.65681833,3460.6,3459.5,1.1493]
[1732375042614,0.16568183,3460.5,3459.5,1.1493]
[1732375042921,0.50801833,3460.6,3459.5,1.1493]
[1732375043885,0.50801833,3460.6,3459.2,1.1471]
[1732375044123,0.50801833,3460.6,3459.4,1.1471]
[1732375045119,1.1759,3462.2,3459.6,1.1824]
[1732375045278,1.73926181,3462.2,3459.8,1.1824]
[1732375045484,1.73926181,3462.2,3460.0,1.1824]
[1732375045791,1.73926181,3462.2,3460.1,1.1824]
[1732375045792,0.56754153,3461.6,3460.1,1.1824]
[1732375046510,0.55,3461.9,3460.1,1.1824]
[1732375046824,0.55,3461.6,3460.1,1.1824]
[1732375047023,0.55,3461.2,3460.1,1.177124]
[1732375047302,0.5813826,3460.9,3460.1,1.177124]
[1732375047929,0.55,3460.6,3459.1,0.02889785]
[1732375048087,0.55,3460.6,3458.1,0.69717279]
[1732375048285,0.55,3460.4,3458.4,0.56563838]
[1732375048505,0.55,3460.4,3458.5,0.02890369]
[1732375049318,0.5813826,3460.9,3458.5,0.02890369]
[1732375049525,0.5813826,3460.9,3458.6,0.55]
[1732375049696,0.55,3461.4,3458.7,0.02889796]
[1732375049886,0.57013193,3460.3,3458.7,0.02889796]
[1732375050086,0.57013193,3460.3,3458.9,0.55]
[1732375050318,0.57013193,3460.3,3459.1,1.0824]
[1732375050622,0.57013193,3460.3,3459.2,1.1112983]
[1732375051019,0.55,3461.4,3459.2,1.1112983]
[1732375052535,0.5692093,3460.9,3459.2,1.1112983]
[1732375052700,0.55,3460.8,3459.2,1.1113014]
[1732375053628,0.5692093,3460.9,3459.2,1.0824]
[1732375053790,0.5692093,3460.9,3459.3,1.11130071]
[1732375054320,1.1866,3462.3,3459.3,1.11130071]
[1732375054530,0.5875467,3461.2,3459.3,1.11130071]
[1732375054822,0.5875467,3461.2,3459.7,1.0824]
[1732375055032,0.5875467,3461.2,3459.8,1.11129166]
[1732375055389,0.5875467,3461.2,3459.9,0.55]
[1732375055590,0.5875467,3461.2,3460.2,0.55]
[1732375055833,0.5875467,3461.2,3460.4,1.0824]
[1732375056192,0.5875467,3461.2,3460.6,1.0824]
[1732375056523,0.5875467,3461.2,3460.8,1.0824]
[1732375057586,0.5875467,3461.2,3459.7,1.0824]
[1732375058411,0.5875467,3461.2,3459.8,1.11129801]
[1732375058613,0.5875467,3461.2,3459.8,1.0824]
[1732375059231,0.26496137,3461.2,3459.8,1.0824]
[1732375060306,1.1866,3461.5,3459.8,1.0824]
[1732375060307,0.95156137,3461.5,3459.8,1.0824]
[1732375060844,0.45156137,3461.5,3459.8,1.0824]
[1732375061547,0.55,3462.3,3459.8,1.0824]
[1732375062945,0.58266312,3460.6,3459.3,0.55]
[1732375063148,0.55,3462.3,3459.6,0.55]
[1732375063317,0.55,3462.3,3459.7,1.0824]
[1732375063512,0.55,3462.3,3459.9,1.0982]
[1732375063859,0.5762615,3460.9,3459.9,1.0982]
[1732375064340,0.55,3462.3,3460.1,1.0982]
[1732375064544,1.1915,3462.2,3460.2,1.2659098]
[1732375064762,1.1915,3462.2,3460.2,1.0982]
[1732375064917,0.55,3462.1,3460.2,1.0982]
[1732375065108,0.58606579,3461.4,3460.2,1.0982]
[1732375066431,0.58606579,3461.4,3460.3,1.12709604]
[1732375066645,0.57326975,3462.4,3460.3,1.0982]
[1732375066816,0.1,3462.5,3460.3,1.0982]
[1732375067020,1.1824,3462.7,3460.3,1.0982]
[1732375067329,1.65167738,3462.7,3460.3,1.0982]
[1732375067718,0.5633429,3461.6,3460.3,1.0982]
[1732375068467,0.5633429,3461.6,3460.4,1.18619172]
[1732375068643,1.1915,3462.4,3460.4,1.18619172]
[1732375068814,1.1915,3462.4,3460.6,1.1573]
[1732375069010,1.1915,3462.4,3460.8,1.1573]
[1732375069232,0.58165483,3461.7,3460.8,1.1573]
[1732375069952,1.1915,3462.4,3460.8,1.1573]
[1732375070312,0.57554246,3461.8,3460.8,1.1573]
[1732375071816,0.57554246,3461.8,3461.0,1.1573]
[1732375072758,1.154358,3462.8,3461.0,1.1573]
[1732375072951,1.154358,3462.8,3461.1,1.1861891]
[1732375073253,1.154358,3462.8,3460.2,0.2883]
[1732375073254,0.58021323,3462.1,3461.3,1.0741]
[1732375073718,0.1992802,3463.0,3461.5,1.0741]
[1732375073919,0.1992802,3463.0,3461.6,1.10298362]
[1732375074226,1.99280197,3463.1,3461.6,1.10298362]
[1732375074423,0.56880479,3462.7,3461.7,1.0741]
[1732375074802,0.56880479,3462.7,3461.9,1.0741]
[1732375075252,1.40936345,3463.8,3462.2,0.55]
[1732375075438,1.40936345,3463.8,3462.3,0.40213429]
[1732375075638,1.40936345,3463.8,3462.0,0.18643737]
[1732375075639,1.40936345,3463.8,3462.5,1.0741]
[1732375075875,1.42746055,3463.6,3462.5,1.0741]
[1732375076436,0.56994329,3463.9,3462.5,1.0741]
[1732375076839,1.1281,3463.8,3462.5,1.0741]
[1732375077036,0.16980433,3463.7,3462.5,1.0741]
[1732375079269,0.74226251,3463.7,3462.5,1.0741]
[1732375079471,0.16980433,3463.7,3462.5,1.0741]
[1732375081086,0.16980433,3463.7,3460.5,0.66250729]
[1732375081087,0.16980433,3463.7,3462.6,1.10297509]
[1732375081285,0.00586557,3463.9,3462.8,1.0741]
[1732375082276,0.00586557,3463.9,3462.0,0.55]
[1732375082477,0.00586557,3463.9,3462.4,0.55]
[1732375082644,0.00586557,3463.9,3462.6,1.0741]
[1732375084787,0.57380374,3464.0,3462.6,1.0741]
[1732375085086,1.1281,3464.1,3462.6,1.0741]
[1732375086279,1.6844851,3464.1,3462.6,1.0741]
[1732375086581,0.16844851,3464.0,3462.6,1.0741]
[1732375089786,0.55,3463.5,3460.8,1.0766]
[1732375089999,0.55,3463.5,3461.0,1.0766]
[1732375090154,0.55,3463.3,3461.2,1.0766]
[1732375090599,3.0,3463.9,3460.3,0.09999758]
[1732375090600,1.0878,3463.9,3461.4,1.0766]
[1732375090890,0.55,3463.8,3461.6,1.0766]
[1732375091088,0.55,3463.8,3461.7,1.1054791]
[1732375091383,1.0878,3464.3,3461.9,1.0766]
[1732375091592,1.0878,3464.3,3462.0,1.10547545]
[1732375092469,0.55,3464.2,3462.0,1.10547545]
[1732375092787,0.55,3464.0,3462.2,1.0766]
[1732375093387,0.55,3464.0,3463.9,0.014796]
[1732375093952,0.16378,3464.1,3463.9,0.014796]
[1732375094395,0.56778331,3464.1,3463.9,0.014796]
[1732375094562,4.0878,3464.7,3463.9,0.014796]
[1732375094893,1.0878,3464.7,3463.9,0.014796]
[1732375095495,1.0741,3464.8,3463.9,0.014796]
[1732375095656,0.56283874,3464.7,3463.9,0.014796]
[1732375095855,0.16369387,3464.6,3463.9,0.014796]
[1732375096150,0.16369387,3464.6,3464.0,1.0766]
[1732375096355,1.0741,3464.8,3464.0,1.0766]
[1732375097096,1.6240716,3464.8,3464.0,1.0766]
[1732375097252,1.0878,3464.7,3463.7,0.47687944]
[1732375097453,0.55,3464.6,3462.0,0.2883]
[1732375097753,0.55,3464.6,3462.1,0.57887377]
[1732375097978,0.55,3464.4,3462.1,0.02887389]
[1732375098957,0.55,3464.4,3461.4,0.02887643]
[1732375099170,0.55,3464.4,3461.6,0.2883]
[1732375099383,0.55,3464.2,3461.9,0.8383]
[1732375099587,0.55,3464.2,3462.0,0.02887643]
[1732375100359,0.55,3464.2,3462.1,1.0766]
[1732375100562,0.55,3464.2,3462.3,1.0766]
[1732375100758,0.730158,3464.2,3462.3,1.0766]
[1732375101602,0.55,3464.0,3462.3,1.0766]
[1732375102099,1.0878,3463.9,3462.3,1.0766]
[1732375102387,1.0878,3463.7,3462.3,1.0766]
[1732375102594,1.0878,3463.5,3462.3,1.0766]
[1732375102890,0.55,3463.4,3462.3,1.0766]
[1732375104495,0.55,3463.2,3460.6,1.1436]
[1732375104651,0.55,3463.2,3460.8,1.1436]
[1732375104652,0.55,3463.0,3460.8,1.1436]
[1732375104857,0.55,3463.0,3461.0,1.1436]
[1732375105056,0.55,3463.0,3461.2,1.1436]
[1732375105316,1.0917,3463.1,3461.4,1.1436]
[1732375105496,0.55,3463.0,3461.6,1.1436]
[1732375105799,0.16417,3462.9,3461.6,1.1436]
[1732375106104,0.55,3462.6,3461.6,1.1436]
[1732375106765,0.55,3462.6,3461.3,1.1436]
[1732375107389,1.0917,3462.5,3461.3,1.1436]
[1732375107559,1.0917,3462.5,3461.4,0.34437866]
[1732375107764,1.0917,3462.6,3461.5,0.34437866]
[1732375107971,1.0917,3462.6,3460.9,1.1436]
[1732375107972,1.0917,3462.6,3461.6,0.34437866]
[1732375108181,1.0917,3462.5,3461.7,0.34437866]
[1732375108373,1.0917,3462.5,3460.9,1.1436]
[1732375108583,5.88794,3462.7,3460.9,1.1436]
[1732375108584,1.0757,3462.4,3460.9,1.1436]
[1732375109364,1.0757,3462.3,3460.9,1.1436]
[1732375111587,1.0757,3462.3,3461.0,0.21475465]
[1732375111901,0.16257,3462.2,3461.1,0.21475465]
[1732375112209,0.16257,3462.2,3461.2,0.21475465]
[1732375112377,0.16257,3462.2,3461.3,0.21475465]
[1732375112704,0.16257,3462.2,3461.4,0.21475465]
[1732375112888,0.16257,3462.2,3461.5,0.21475465]
[1732375113206,0.16257,3462.2,3461.6,0.21475465]
[1732375113407,0.18104881,3462.1,3461.7,0.21475465]
[1732375113610,0.18104881,3462.1,3461.8,0.21475465]
[1732375113782,1.64791813,3462.3,3461.9,0.21475465]
[1732375113981,1.64791813,3462.3,3461.2,1.145]
[1732375114173,1.64791813,3462.3,3460.9,1.145]
[1732375114374,1.0757,3462.1,3461.0,0.21464664]
[1732375114574,1.0757,3462.1,3461.1,0.21464664]
[1732375114784,1.0757,3462.1,3461.2,0.21464664]
[1732375115105,1.0757,3462.1,3460.9,1.145]
[1732375115106,0.18454918,3462.0,3461.3,0.21464664]
[1732375115268,0.18454918,3462.0,3461.4,0.21464664]
[1732375115465,1.0757,3462.1,3460.9,1.145]
[1732375115466,0.18102492,3461.9,3460.9,1.145]
[1732375115809,0.18102492,3461.9,3461.0,0.21452956]
[1732375115970,0.18102492,3461.9,3461.1,0.21452956]
[1732375116170,0.18102492,3461.9,3461.2,0.21452956]
[1732375116394,0.18102492,3461.9,3461.3,0.21452956]
[1732375116578,0.18102492,3461.9,3461.4,0.21452956]
[1732375116798,0.18102492,3461.9,3460.9,1.145]
[1732375116998,0.18102492,3461.9,3461.0,0.21446037]
[1732375117289,0.18102492,3461.9,3459.1,0.02889331]
[1732375117290,1.0757,3461.7,3461.1,0.04346037]
[1732375117494,1.0757,3461.7,3460.5,1.145]
[1732375118528,1.0757,3461.7,3460.6,0.34295803]
[1732375118708,1.0757,3461.7,3460.5,1.145]
[1732375118709,1.0757,3461.7,3460.7,0.34295803]
[1732375118873,0.18067249,3461.6,3460.5,1.145]
[1732375119212,0.18067249,3461.6,3460.6,0.34296172]
[1732375119371,0.18067249,3461.6,3460.5,1.145]
[1732375119702,0.18063725,3461.5,3460.6,0.34284424]
[1732375119918,0.55,3461.4,3459.4,1.145]
[1732375120092,0.55,3461.4,3459.6,1.145]
[1732375120277,0.55,3461.6,3459.8,1.145]
[1732375120480,0.55,3461.6,3459.9,0.491635]
[1732375120481,1.0757,3461.5,3459.9,0.491635]
[1732375120680,1.0757,3461.5,3460.0,0.34285]
[1732375120681,0.55,3461.4,3460.0,0.34285]
[1732375120888,0.55,3461.4,3460.1,0.34285]
[1732375121095,1.0757,3461.3,3460.2,0.34285]
[1732375121295,3.55,3461.2,3459.8,1.145]
[1732375121520,0.55,3461.2,3459.9,0.34260314]
[1732375121731,0.55,3461.2,3460.0,0.34260314]
[1732375122023,0.55,3461.0,3460.1,0.34260314]
[1732375122180,0.55,3461.0,3459.8,1.145]
[1732375122518,0.55,3461.0,3459.9,0.34251634]
[1732375122679,0.55,3461.0,3460.0,0.34251634]
[1732375122880,1.0757,3461.1,3460.1,0.34251634]
[1732375123203,1.0757,3461.5,3460.3,1.145]
[1732375123410,1.1556,3461.8,3460.5,1.1151]
[1732375123713,1.1556,3461.8,3460.7,1.1151]
[1732375124242,1.1556,3461.8,3460.8,0.34243271]
[1732375124516,1.1556,3461.8,3460.7,1.1151]
[1732375124897,1.1556,3461.8,3460.8,0.34247123]
[1732375125220,0.17239749,3461.7,3460.9,0.3424683]
[1732375125519,0.17239749,3461.7,3460.7,1.1151]
[1732375125678,0.17239749,3461.7,3460.8,0.34261182]
[1732375125884,0.17239749,3461.7,3460.9,0.34261182]
[1732375126112,0.17239749,3461.7,3460.7,1.1151]
[1732375126279,0.56837492,3462.0,3460.9,1.1939]
[1732375126493,1.1908,3462.3,3461.0,0.34280553]
[1732375126817,1.1908,3462.3,3461.1,0.34280553]
[1732375127016,1.1908,3462.3,3461.2,0.34280553]
[1732375127192,1.1908,3462.3,3461.3,0.34280553]
[1732375127397,1.1908,3462.3,3461.4,1.53670553]
[1732375127722,4.1908,3462.3,3461.4,1.1939]
[1732375127927,0.55,3462.2,3459.2,0.57889398]
[1732375128130,0.55,3462.2,3459.2,0.55]
[1732375128131,0.55,3462.0,3459.2,0.55]
[1732375128418,0.55,3462.0,3459.4,0.55]
[1732375128594,0.55,3462.0,3459.6,0.55]
[1732375128926,1.1174,3461.9,3459.7,0.34324449]
[1732375129129,0.55,3461.6,3459.8,0.34324449]
[1732375129330,1.1174,3461.4,3459.9,0.55779219]
[1732375129491,1.1174,3461.2,3460.0,0.55779219]
[1732375129692,0.55,3461.1,3460.1,0.55779219]
[1732375130033,1.1174,3461.5,3458.4,0.02890395]
[1732375130319,1.1174,3461.8,3459.0,0.2883]
[1732375130506,1.1174,3461.8,3460.0,0.83]
[1732375130707,1.1174,3461.8,3460.1,0.55808483]
[1732375130945,1.1174,3461.8,3460.3,1.1425]
[1732375131235,1.1174,3461.8,3460.5,1.1425]
[1732375131414,1.1174,3461.8,3460.7,1.1425]
[1732375131592,1.1174,3461.8,3460.8,0.55808483]
[1732375131797,1.1174,3462.1,3461.0,1.1425]
[1732375132016,4.31433989,3462.1,3461.1,0.55887151]
[1732375132201,4.31433989,3462.1,3461.2,0.98873136]
[1732375132401,4.31433989,3462.1,3461.3,0.98873136]
[1732375132402,4.1174,3462.1,3461.3,0.98873136]
[1732375132597,1.40827167,3462.3,3461.5,1.1425]
[1732375132800,1.1174,3462.6,3461.6,1.5e-07]
[1732375133089,0.16874005,3462.5,3461.7,1.5e-07]
[1732375133326,0.16874005,3462.5,3461.5,1.1425]
[1732375134222,0.72102995,3462.5,3461.5,1.1425]
[1732375134429,0.183843,3462.4,3461.5,1.1425]
[1732375135587,0.73292812,3462.4,3461.2,1.1425]
[1732375135792,0.183843,3462.4,3461.2,1.1425]
[1732375137302,0.55,3462.2,3461.2,1.1425]
[1732375137502,0.1851243,3462.1,3461.2,1.1425]
[1732375139314,1.1174,3462.3,3461.2,1.1425]
[1732375139516,0.54827359,3462.3,3461.2,1.1425]
[1732375139726,1.1174,3463.0,3461.2,1.1425]
[1732375140257,1.1174,3463.0,3461.3,1.17138972]
[1732375140926,1.1174,3463.0,3461.3,1.1425]
[1732375141248,1.69142047,3463.0,3461.3,1.1425]
[1732375141544,0.16914205,3462.9,3461.3,1.1425]
[1732375141909,0.57402047,3463.0,3460.7,1.1425]
[1732375142116,1.1174,3463.3,3461.0,0.55]
[1732375142323,1.1174,3463.3,3461.4,1.1425]
[1732375143119,0.55,3463.2,3461.4,1.1425]
[1732375144414,1.1051,3463.1,3461.4,1.1425]
[1732375144610,1.1051,3462.9,3461.4,1.1425]
[1732375144857,1.0888,3463.1,3461.4,1.1425]
[1732375145029,1.0888,3462.9,3461.4,1.1425]
[1732375145359,0.55,3462.6,3461.4,1.1425]
[1732375147017,1.0888,3462.7,3461.4,1.1425]
[1732375147218,1.0888,3463.1,3461.4,1.1425]
[1732375147449,1.42746055,3463.6,3461.4,1.1425]
[1732375147450,1.0888,3463.4,3461.4,1.1425]
[1732375148566,0.55,3463.1,3461.4,1.1425]
[1732375149316,1.134,3463.2,3460.0,0.83]
[1732375149317,1.134,3463.2,3461.5,0.02889001]